bitfinex-derivatives/quotes_BNBF0:USTF0_20250115
["timestamp","ask_amount","ask_price","bid_price","bid_amount"]
[1736911218177,0.26350073,697.96,697.28,0.829]
[1736911218378,0.26350073,697.95,697.28,0.829]
[1736911218678,0.26350073,697.94,697.28,0.829]
[1736911218879,0.28650421,698.07,697.28,0.829]
[1736911219173,0.26350365,698.06,697.28,0.829]
[1736911219778,0.26350566,698.05,697.28,0.829]
[1736911219977,0.26350566,698.04,697.28,0.829]
[1736911220279,0.28650421,698.07,697.28,0.829]
[1736911220280,0.26350566,698.03,697.28,0.829]
[1736911220480,0.26350566,698.02,697.28,0.829]
[1736911220676,0.26350566,698.01,697.28,0.829]
[1736911220979,0.26350566,698.0,697.28,0.829]
[1736911221179,0.26350566,697.99,697.28,0.829]
[1736911221380,0.26350566,697.98,697.28,0.829]
[1736911221573,0.26350566,697.97,697.28,0.829]
[1736911221774,0.26350596,697.96,697.28,0.829]
[1736911221974,0.26350596,697.95,697.28,0.829]
[1736911222180,0.26350596,697.94,697.28,0.829]
[1736911222380,0.26350596,697.93,697.28,0.829]
[1736911222579,0.26350596,697.92,697.28,0.829]
[1736911222880,0.28650421,698.07,697.28,0.829]
[1736911223178,0.26350893,698.06,697.28,0.829]
[1736911223381,0.28651242,698.05,697.28,0.829]
[1736911223573,0.26350893,698.04,697.28,0.829]
[1736911224680,0.26350565,698.03,697.28,0.829]
[1736911224878,0.26350565,698.02,697.28,0.829]
[1736911225076,0.2635062,698.01,697.28,0.829]
[1736911225277,0.2635062,698.0,697.28,0.829]
[1736911225479,0.2635062,697.99,697.28,0.829]
[1736911225678,0.2635062,697.98,697.28,0.829]
[1736911225974,0.28651242,698.05,697.28,0.829]
[1736911238791,1.35835264,698.05,697.28,0.829]
[1736911239787,0.26351082,698.04,697.28,0.829]
[1736911239985,1.07184022,698.02,697.28,0.829]
[1736911241491,1.07184022,697.96,697.28,0.829]
[1736911242584,1.07184022,697.92,697.28,0.829]
[1736911243692,1.07184022,697.91,697.28,0.829]
[1736911244587,0.26351134,697.9,697.28,0.829]
[1736911244790,1.07184022,697.9,697.28,0.829]
[1736911245890,0.26351157,697.89,697.28,0.829]
[1736911246098,1.07184022,697.8,697.28,0.829]
[1736911247198,1.07184022,697.77,697.28,0.829]
[1736911248192,1.07184022,697.74,697.28,0.829]
[1736911249596,1.07184022,697.76,697.28,0.829]
[1736911251399,1.07184022,697.8,697.28,0.829]
[1736911252299,1.07184022,697.76,697.28,0.829]
[1736911253300,1.07184022,697.75,697.28,0.829]
[1736911254206,1.07184022,697.73,697.28,0.829]
[1736911255304,1.07184022,697.74,697.28,0.829]
[1736911256204,0.28652063,698.03,697.28,0.829]
[1736911263407,0.26352418,698.02,697.28,0.829]
[1736911265010,1.07184022,697.95,697.28,0.829]
[1736911266007,1.07184022,697.98,697.28,0.829]
[1736911266310,0.26351914,697.97,697.28,0.829]
[1736911266810,1.07184022,697.92,697.28,0.829]
[1736911267010,0.26351914,697.91,697.28,0.829]
[1736911267404,1.07184022,697.92,697.28,0.829]
[1736911268811,0.28652063,698.03,697.28,0.829]
[1736911268812,1.07184022,697.93,697.28,0.829]
[1736911269005,0.26351786,697.92,697.28,0.829]
[1736911269809,1.07184022,697.91,697.28,0.829]
[1736911270007,0.26351786,697.9,697.28,0.829]
[1736911270311,1.07184022,697.91,697.28,0.829]
[1736911271113,0.28652063,698.03,697.28,0.829]
[1736911271114,1.07184022,697.92,697.28,0.829]
[1736911271916,0.28652063,698.03,697.28,0.829]
[1736911275916,1.35836085,698.03,697.28,0.829]
[1736911276812,1.07184022,698.02,697.28,0.829]
[1736911279414,1.07184022,698.01,697.28,0.829]
[1736911280618,0.26352536,698.0,697.28,0.829]
[1736911280916,0.26352536,697.99,697.28,0.829]
[1736911281116,1.07184022,698.02,697.28,0.829]
[1736911281317,0.26352668,698.01,697.28,0.829]
[1736911281919,1.07184022,697.89,697.28,0.829]
[1736911287118,1.07184022,697.88,697.28,0.829]
[1736911289022,0.28652063,698.03,697.28,0.829]
[1736911289023,1.07184022,697.89,697.28,0.829]
[1736911289620,1.07184022,697.88,697.28,0.829]
[1736911291816,1.07184022,697.87,697.28,0.829]
[1736911292817,1.07184022,697.85,697.28,0.829]
[1736911294517,1.07184022,697.86,697.28,0.829]
[1736911295522,0.28652063,698.03,697.28,0.829]
[1736911295523,1.07184022,697.82,697.28,0.829]
[1736911296520,0.28652063,698.03,697.28,0.829]
[1736911296521,1.07184022,697.83,697.28,0.829]
[1736911297322,1.07184022,697.81,697.28,0.829]
[1736911298121,1.07184022,697.78,697.28,0.829]
[1736911299228,1.07184022,697.81,697.28,0.829]
[1736911300429,1.07184022,697.82,697.28,0.829]
[1736911301625,1.07184022,697.8,697.28,0.829]
[1736911302830,1.07184022,697.78,697.28,0.829]
[1736911304537,1.07184022,697.79,697.28,0.829]
[1736911307035,1.07184022,697.77,697.28,0.829]
[1736911308136,1.07184022,697.75,697.28,0.829]
[1736911309241,1.07184022,697.73,697.28,0.829]
[1736911310739,1.07184022,697.74,697.28,0.829]
[1736911311834,1.07184022,697.7,697.28,0.829]
[1736911312939,1.07184022,697.69,697.28,0.829]
[1736911313940,1.07184022,697.7,697.28,0.829]
[1736911315041,1.07184022,697.67,697.28,0.829]
[1736911315943,0.8243212,698.02,697.28,0.829]
[1736911315944,1.07184022,697.68,697.28,0.829]
[1736911316637,1.07184022,697.7,697.28,0.829]
[1736911317938,1.07184022,697.69,697.28,0.829]
[1736911318947,1.07184022,697.73,697.28,0.829]
[1736911319947,0.2635821,697.72,697.28,0.829]
[1736911320845,1.07184022,697.71,697.28,0.829]
[1736911321045,0.2635821,697.7,697.28,0.829]
[1736911321546,0.26358208,697.69,697.28,0.829]
[1736911321746,1.07184022,697.71,697.28,0.829]
[1736911322148,1.07184022,697.7,697.28,0.829]
[1736911322542,0.26358115,697.69,697.28,0.829]
[1736911323048,1.07184022,697.7,697.28,0.829]
[1736911323245,1.07184022,697.71,697.28,0.829]
[1736911324248,0.28652884,698.01,697.28,0.829]
[1736911329554,1.07184022,698.0,697.28,0.829]
[1736911330453,1.07184022,697.99,697.28,0.829]
[1736911331353,1.35837727,697.99,697.28,0.829]
[1736911331754,0.28654116,697.98,697.28,0.829]
[1736911332855,0.26356103,697.97,697.28,0.829]
[1736911333248,0.28654937,697.96,697.28,0.829]
[1736911333649,1.07184022,697.84,697.28,0.829]
[1736911334857,1.07184022,697.81,697.28,0.829]
[1736911336056,1.07184022,697.8,697.28,0.829]
[1736911336857,1.07184022,697.79,697.28,0.829]
[1736911339356,1.07184022,697.77,697.28,0.829]
[1736911340062,1.07184022,697.76,697.28,0.829]
[1736911341264,1.07184022,697.79,697.28,0.829]
[1736911343669,1.07184022,697.84,697.28,0.829]
[1736911344867,1.07184022,697.89,697.28,0.829]
[1736911345970,0.28654937,697.96,697.28,0.829]
[1736911345971,1.07184022,697.92,697.28,0.829]
[1736911347370,1.07184022,697.94,697.28,0.829]
[1736911348466,1.07184022,697.98,697.28,0.829]
[1736911349468,1.07184022,698.0,697.28,0.829]
[1736911350467,1.07184022,698.02,697.28,0.829]
[1736911351571,1.07184022,698.04,697.28,0.829]
[1736911351869,3.27386528,698.91,697.28,0.829]
[1736911352075,0.26350219,698.84,697.28,0.829]
[1736911352275,0.26350219,698.83,697.28,0.829]
[1736911352473,4.28081835,703.81,697.28,0.829]
[1736911352474,1.07213592,698.05,697.28,0.829]
[1736911352775,0.26349705,698.04,697.28,0.829]
[1736911353374,0.2635001,698.03,697.28,0.829]
[1736911353574,1.07213592,698.05,697.28,0.829]
[1736911353777,0.26350155,698.04,697.28,0.829]
[1736911355471,0.26350155,698.03,697.28,0.829]
[1736911355671,1.07213592,698.06,697.28,0.829]
[1736911355874,0.26349845,698.05,697.28,0.829]
[1736911356068,0.26349856,698.04,697.28,0.829]
[1736911356272,0.26349856,698.03,697.28,0.829]
[1736911356475,1.07213592,698.07,697.28,0.829]
[1736911356671,0.26350021,698.06,697.28,0.829]
[1736911356976,0.26349999,698.05,697.28,0.829]
[1736911357171,0.26349999,698.04,697.28,0.829]
[1736911357375,1.07213592,698.06,697.28,0.829]
[1736911357679,0.26349492,698.05,697.28,0.829]
[1736911358276,1.07213592,698.03,697.28,0.829]
[1736911358479,0.26349492,698.02,697.28,0.829]
[1736911358780,1.07213592,698.03,697.28,0.829]
[1736911358977,0.26350108,698.02,697.28,0.829]
[1736911361479,1.07213592,698.03,697.28,0.829]
[1736911361676,1.33563341,698.02,697.28,0.829]
[1736911361881,0.26349749,698.01,697.28,0.829]
[1736911362883,1.33563341,698.01,697.28,0.829]
[1736911363182,0.26349749,698.0,697.28,0.829]
[1736911363884,1.33563341,698.0,697.28,0.829]
[1736911364183,0.26349749,697.99,697.28,0.829]
[1736911364378,1.07213592,698.0,697.28,0.829]
[1736911364685,1.07213592,698.01,697.28,0.829]
[1736911365583,1.07213592,698.11,697.28,0.829]
[1736911365783,0.26349927,698.1,697.28,0.829]
[1736911366185,1.07213592,698.11,697.28,0.829]
[1736911366680,1.07213592,698.1,697.28,0.829]
[1736911367686,1.07213592,698.17,697.28,0.829]
[1736911368591,1.07213592,698.22,697.28,0.829]
[1736911368787,0.26345482,698.21,697.28,0.829]
[1736911369887,1.07213592,698.17,697.28,0.829]
[1736911370090,0.26345482,698.16,697.28,0.829]
[1736911371089,1.07213592,698.15,697.28,0.829]
[1736911371287,0.26345482,698.14,697.28,0.829]
[1736911372088,1.07213592,698.14,697.28,0.829]
[1736911372993,1.07213592,698.2,697.28,0.829]
[1736911373191,0.26342992,698.19,697.28,0.829]
[1736911373387,1.07213592,698.2,697.28,0.829]
[1736911373590,0.26342558,698.19,697.28,0.829]
[1736911373790,0.26342854,698.19,697.28,0.829]
[1736911374190,0.26342854,698.18,697.28,0.829]
[1736911374388,1.07213592,698.23,697.28,0.829]
[1736911374591,0.26342418,698.22,697.28,0.829]
[1736911374787,1.07213592,698.23,697.28,0.829]
[1736911374992,5.40607226,699.24,697.28,0.829]
[1736911374993,0.26342095,698.22,697.28,0.829]
[1736911375192,0.26342095,698.21,697.28,0.829]
[1736911375393,0.26342948,698.2,697.28,0.829]
[1736911375594,1.07213592,698.24,697.28,0.829]
[1736911375796,0.26342682,698.23,697.28,0.829]
[1736911376796,1.07213592,698.22,697.28,0.829]
[1736911377095,0.26342682,698.21,697.28,0.829]
[1736911377798,1.33556274,698.21,697.28,0.829]
[1736911377992,1.07213592,698.21,697.28,0.829]
[1736911378192,0.26342884,698.2,697.28,0.829]
[1736911378793,1.07213592,698.21,697.28,0.829]
[1736911379191,0.26342768,698.2,697.28,0.829]
[1736911379396,1.07213592,698.21,697.28,0.829]
[1736911379592,1.07213592,698.24,697.28,0.829]
[1736911379797,0.26342095,698.23,697.28,0.829]
[1736911380995,1.07213592,698.26,697.28,0.829]
[1736911380996,0.26342095,698.22,697.28,0.829]
[1736911381197,0.26342095,698.21,697.28,0.829]
[1736911381400,1.07213592,698.26,697.28,0.829]
[1736911382992,1.07213592,698.3,697.28,0.829]
[1736911383199,0.54983104,698.29,697.28,0.829]
[1736911383398,0.54983701,698.28,697.28,0.829]
[1736911383599,0.28641805,698.28,697.28,0.829]
[1736911383899,0.26342172,698.27,697.28,0.829]
[1736911384299,0.28641805,698.28,697.28,0.829]
[1736911384500,0.26342368,698.27,697.28,0.829]
[1736911385400,0.28641805,698.28,697.28,0.829]
[1736911387195,0.26341197,698.27,697.28,0.829]
[1736911387400,0.28641805,698.28,697.28,0.829]
[1736911387596,0.26341206,698.27,697.28,0.829]
[1736911387798,0.28641805,698.28,697.28,0.829]
[1736911388404,0.26339807,698.27,697.28,0.829]
[1736911389005,0.26340266,698.26,697.28,0.829]
[1736911389306,0.26340266,698.25,697.28,0.829]
[1736911389507,0.26340266,698.24,697.28,0.829]
[1736911389807,0.28641805,698.28,697.28,0.829]
[1736911389808,0.26340266,698.23,697.28,0.829]
[1736911390105,0.26340266,698.22,697.28,0.829]
[1736911390299,0.26340266,698.21,697.28,0.829]
[1736911390503,0.26340266,698.2,697.28,0.829]
[1736911390703,0.28641805,698.28,697.28,0.829]
[1736911390904,0.26340155,698.27,697.28,0.829]
[1736911391104,0.26340149,698.27,697.28,0.829]
[1736911393803,0.2634044,698.26,697.28,0.829]
[1736911394002,0.2634044,698.25,697.28,0.829]
[1736911394203,0.2634044,698.24,697.28,0.829]
[1736911394406,0.2634044,698.23,697.28,0.829]
[1736911394608,0.2634044,698.22,697.28,0.829]
[1736911394802,0.2634044,698.21,697.28,0.829]
[1736911395006,0.2634044,698.2,697.28,0.829]
[1736911395208,0.2634044,698.19,697.28,0.829]
[1736911395510,0.2634044,698.18,697.28,0.829]
[1736911395710,1.07213592,698.26,697.28,0.829]
[1736911395910,0.2634008,698.25,697.28,0.829]
[1736911396402,1.07213592,698.26,697.28,0.829]
[1736911396607,0.26340061,698.25,697.28,0.829]
[1736911397311,0.26339208,698.24,697.28,0.829]
[1736911397509,0.26339208,698.23,697.28,0.829]
[1736911397712,0.28641805,698.28,697.28,0.829]
[1736911397713,0.26339208,698.22,697.28,0.829]
[1736911397911,0.26339208,698.21,697.28,0.829]
[1736911398109,0.26339208,698.2,697.28,0.829]
[1736911398314,0.26339208,698.19,697.28,0.829]
[1736911398510,1.07213592,698.24,697.28,0.829]
[1736911398714,0.26339291,698.23,697.28,0.829]
[1736911399414,0.26339087,698.22,697.28,0.829]
[1736911399606,0.26339087,698.21,697.28,0.829]
[1736911399811,0.26339087,698.2,697.28,0.829]
[1736911400014,0.26339087,698.19,697.28,0.829]
[1736911400215,1.07213592,698.23,697.28,0.829]
[1736911400914,0.28641805,698.28,697.28,0.829]
[1736911400915,1.07213592,698.27,697.28,0.829]
[1736911402017,0.28641805,698.28,697.28,0.829]
[1736911423327,1.07213592,698.66,697.28,0.829]
[1736911423527,0.5495473,698.65,697.28,0.829]
[1736911423725,0.54955139,698.64,697.28,0.829]
[1736911424028,0.26328093,698.63,697.28,0.829]
[1736911424226,0.26328275,698.62,697.28,0.829]
[1736911424423,0.26328275,698.61,697.28,0.829]
[1736911424631,0.26328275,698.6,697.28,0.829]
[1736911424828,0.26328275,698.59,697.28,0.829]
[1736911425029,0.26328275,698.58,697.28,0.829]
[1736911425329,0.26328275,698.57,697.28,0.829]
[1736911425526,0.26328275,698.56,697.28,0.829]
[1736911425724,0.26328275,698.55,697.28,0.829]
[1736911425928,0.28627046,698.64,697.28,0.829]
[1736911425929,0.26328275,698.54,697.28,0.829]
[1736911426126,0.26328275,698.53,697.28,0.829]
[1736911426325,0.26328275,698.52,697.28,0.829]
[1736911426526,0.26328275,698.51,697.28,0.829]
[1736911426727,0.26328275,698.5,697.28,0.829]
[1736911426923,0.26328256,698.49,697.28,0.829]
[1736911427129,0.26328256,698.48,697.28,0.829]
[1736911427326,0.28627046,698.64,697.28,0.829]
[1736911427532,0.26328293,698.63,697.28,0.829]
[1736911430434,0.26328277,698.62,697.28,0.829]
[1736911430635,0.26328277,698.61,697.28,0.829]
[1736911430935,0.26328277,698.6,697.28,0.829]
[1736911431235,0.26328277,698.59,697.28,0.829]
[1736911431435,0.26328277,698.58,697.28,0.829]
[1736911431635,0.26328277,698.57,697.28,0.829]
[1736911431932,0.26328277,698.56,697.28,0.829]
[1736911432135,0.26328277,698.55,697.28,0.829]
[1736911432330,0.26328277,698.6,697.28,0.829]
[1736911432535,0.26328521,698.59,697.28,0.829]
[1736911432736,0.26328521,698.58,697.28,0.829]
[1736911432936,0.26328521,698.57,697.28,0.829]
[1736911433236,1.33542113,698.56,697.28,0.829]
[1736911433537,0.26328521,698.55,697.28,0.829]
[1736911434038,1.33542113,698.55,697.28,0.829]
[1736911434235,0.26328521,698.54,697.28,0.829]
[1736911435136,1.07213592,698.55,697.28,0.829]
[1736911435432,0.28627046,698.64,697.28,0.829]
[1736911435433,1.07213592,698.53,697.28,0.829]
[1736911435631,0.26328646,698.52,697.28,0.829]
[1736911436337,1.33542238,698.52,697.28,0.829]
[1736911436537,0.26328646,698.51,697.28,0.829]
[1736911437838,0.26328254,698.5,697.28,0.829]
[1736911438042,0.26328254,698.49,697.28,0.829]
[1736911438237,0.26328254,698.48,697.28,0.829]
[1736911438437,0.26328254,698.47,697.28,0.829]
[1736911438638,0.26328241,698.46,697.28,0.829]
[1736911438837,1.07213592,698.52,697.28,0.829]
[1736911439035,0.26328376,698.51,697.28,0.829]
[1736911439234,1.33541968,698.51,697.28,0.829]
[1736911439431,0.26328376,698.5,697.28,0.829]
[1736911440037,1.07213592,698.47,697.28,1.89878333]
[1736911440736,0.26328897,698.46,697.28,0.829]
[1736911440936,0.28627046,698.64,697.28,0.829]
[1736911441136,0.26328661,698.63,697.28,0.829]
[1736911441735,1.07178774,698.48,697.3,1.06832712]
[1736911442733,1.07178774,698.49,697.31,1.06832712]
[1736911443135,1.07178774,698.49,697.31,2.03232712]
[1736911443837,0.28627046,698.64,697.31,0.964]
[1736911443838,1.07178774,698.59,697.31,0.964]
[1736911445148,1.07178774,698.56,697.31,0.964]
[1736911446042,1.07178774,698.55,697.31,0.964]
[1736911446947,1.07178774,698.52,697.31,0.964]
[1736911448248,1.07178774,698.53,697.31,0.964]
[1736911449648,1.07178774,698.53,697.32,0.28681236]
[1736911450049,0.28627046,698.64,697.32,0.28681236]
[1736911454347,1.07178774,698.59,697.32,0.28681236]
[1736911455145,1.07178774,698.55,697.34,1.06832712]
[1736911455947,1.07178774,698.57,697.32,0.28681236]
[1736911457150,1.07178774,698.58,697.32,0.28681236]
[1736911458349,1.07178774,698.58,697.34,1.06832712]
[1736911459149,1.07178774,698.58,697.33,1.06832712]
[1736911459652,1.07178774,698.58,697.34,0.28680414]
[1736911460158,1.07178774,698.61,697.38,1.06832712]
[1736911460954,1.07178774,698.63,697.39,1.06832712]
[1736911462053,0.28627046,698.64,697.42,1.06832712]
[1736911463153,0.28627046,698.64,697.41,1.06832712]
[1736911464359,0.28627046,698.64,697.34,0.28680414]
[1736911464360,0.28627046,698.64,697.4,1.06832712]
[1736911465266,0.28627046,698.64,697.45,1.06832712]
[1736911466368,0.28627046,698.64,697.45,2.23332712]
[1736911467263,0.28627046,698.64,697.45,1.165]
[1736911469673,0.28627046,698.64,697.45,2.23332712]
[1736911470068,0.28627046,698.64,697.46,0.28675479]
[1736911479275,1.07178774,698.94,697.46,0.28675479]
[1736911479475,1.07178774,698.99,697.46,1.53475479]
[1736911480778,1.07178774,699.06,697.46,1.53475479]
[1736911481078,0.54924504,699.05,697.46,1.53475479]
[1736911481275,0.54924914,699.04,697.46,1.53475479]
[1736911481478,0.26314248,699.03,697.46,1.53475479]
[1736911483784,1.3578944,699.04,697.46,1.53475479]
[1736911483982,0.26314436,699.03,697.46,1.53475479]
[1736911486481,0.28610666,699.04,697.46,1.53475479]
[1736911486686,0.26313969,699.03,697.46,1.53475479]
[1736911489389,0.26314176,699.02,697.46,1.53475479]
[1736911489593,0.26314176,699.03,697.46,1.53475479]
[1736911489790,1.3349295,699.02,697.48,1.06832712]
[1736911489991,0.26314176,699.01,697.49,0.28674246]
[1736911491092,1.3349295,699.01,697.49,1.35506958]
[1736911491389,0.26314176,699.0,697.49,1.35506958]
[1736911491885,1.07178774,698.99,697.51,1.06832712]
[1736911492391,0.26314158,698.98,697.51,1.06832712]
[1736911492993,1.07178774,698.94,697.57,1.06832712]
[1736911493186,0.26314158,698.93,697.57,1.06832712]
[1736911493387,0.26314158,698.93,697.57,1.35503669]
[1736911493990,1.07178774,698.93,697.58,1.06832712]
[1736911495197,1.07178774,699.0,697.57,0.28670957]
[1736911495396,0.26314499,698.99,697.57,0.28670957]
[1736911495691,0.26314523,698.98,697.57,0.28670957]
[1736911495893,0.26314523,698.97,697.57,0.28670957]
[1736911496094,1.07178774,698.98,697.57,0.28670957]
[1736911496295,0.26315154,698.97,697.57,0.28670957]
[1736911496490,1.07178774,698.98,697.57,0.28670957]
[1736911496691,0.26315595,698.97,697.57,0.28670957]
[1736911497289,1.07178774,698.96,697.57,0.28670957]
[1736911498295,1.07178774,698.95,697.57,0.28670957]
[1736911499197,1.07178774,698.94,697.57,0.28670957]
[1736911500200,1.07178774,698.93,697.57,0.28670957]
[1736911501396,1.07178774,698.94,697.57,0.28670957]
[1736911502595,1.07178774,698.94,697.57,1.46270957]
[1736911504199,0.26313782,698.93,697.57,1.46270957]
[1736911504402,1.33492556,698.93,697.57,1.46270957]
[1736911504601,0.26313782,698.92,697.57,1.46270957]
[1736911505306,1.07178774,698.84,697.64,1.06832712]
[1736911506205,1.07178774,698.82,697.67,1.06832712]
[1736911507502,1.07178774,698.81,697.7,1.06832712]
[1736911509508,1.07178774,698.8,697.71,1.06832712]
[1736911511307,1.07178774,698.78,697.72,1.06832712]
[1736911512712,1.07178774,698.79,697.75,1.06832712]
[1736911513511,1.07178774,698.76,697.78,1.06832712]
[1736911515310,1.07178774,698.75,697.78,1.06832712]
[1736911516517,1.07178774,698.75,697.76,1.06832712]
[1736911517519,1.07178774,698.76,697.75,1.06832712]
[1736911519823,1.07178774,698.75,697.75,1.06832712]
[1736911521018,1.07178774,698.76,697.75,1.06832712]
[1736911521925,1.07178774,698.77,697.76,1.06832712]
[1736911524127,1.07178774,698.76,697.76,1.06832712]
[1736911525520,1.07178774,698.76,697.77,1.06832712]
[1736911526527,1.07178774,698.76,697.78,1.06832712]
[1736911526926,1.07178774,698.76,697.78,1.95032712]
[1736911527227,1.07178774,698.75,697.79,1.06832712]
[1736911528525,0.28613531,698.97,697.78,0.882]
[1736911528526,1.07178774,698.73,697.78,1.95032712]
[1736911531432,0.824541,698.96,697.79,1.06832712]
[1736911531433,1.07178774,698.74,697.79,1.06832712]
[1736911532433,1.07178774,698.73,697.8,1.06832712]
[1736911533332,1.07178774,698.73,697.82,1.06832712]
[1736911536432,1.07178774,698.7,697.8,1.06832712]
[1736911537336,1.07178774,698.71,697.8,1.06832712]
[1736911538638,1.07178774,698.78,697.83,1.06832712]
[1736911539434,1.07178774,698.84,697.81,1.06832712]
[1736911540235,1.07178774,698.8,697.78,0.882]
[1736911541438,1.07178774,698.79,697.78,0.882]
[1736911542540,1.07178774,698.78,697.78,0.882]
[1736911544642,1.07178774,698.8,697.78,0.882]
[1736911546542,1.07178774,698.82,697.78,0.882]
[1736911547540,1.07178774,698.8,697.78,0.882]
[1736911548846,1.07178774,698.77,697.82,1.06832712]
[1736911550045,1.07178774,698.93,697.73,1.06832712]
[1736911550238,1.07178774,698.93,697.73,1.85532712]
[1736911551041,0.28613531,698.97,697.73,1.85532712]
[1736911551042,1.07178774,698.95,697.73,0.787]
[1736911553045,1.07178774,698.96,697.73,0.787]
[1736911554246,0.28613531,698.97,697.73,0.787]
[1736911563946,1.07178774,698.95,697.73,0.787]
[1736911565253,1.07178774,698.96,697.73,0.787]
[1736911567048,0.28613531,698.97,697.73,0.787]
[1736911567049,1.07178774,698.95,697.73,0.787]
[1736911568054,1.07178774,698.94,697.73,0.787]
[1736911568949,1.07178774,698.93,697.73,0.787]
[1736911571152,1.07178774,698.9,697.75,1.06832712]
[1736911572353,0.28613531,698.97,697.77,1.06832712]
[1736911572354,1.07178774,698.89,697.77,1.06832712]
[1736911572554,1.07178774,698.89,697.77,1.92332712]
[1736911573258,1.07178774,698.89,697.77,0.855]
[1736911574558,1.07178774,698.88,697.78,1.06832712]
[1736911575758,1.07178774,698.87,697.78,1.06832712]
[1736911576862,0.28613531,698.97,697.77,0.855]
[1736911576863,1.07178774,698.88,697.77,0.855]
[1736911577764,1.07178774,698.86,697.77,0.855]
[1736911577964,1.07178774,698.86,697.78,1.06832712]
[1736911579261,1.07178774,698.85,697.77,0.855]
[1736911580063,1.07178774,698.83,697.77,0.855]
[1736911583361,1.07178774,698.81,697.77,0.855]
[1736911585864,1.07178774,698.84,697.77,0.855]
[1736911588670,1.07178774,698.8,697.77,0.855]
[1736911590966,1.07178774,698.81,697.77,0.855]
[1736911592370,1.07178774,698.8,697.77,0.855]
[1736911593673,1.07178774,698.87,697.77,0.855]
[1736911594766,1.07178774,698.91,697.77,0.855]
[1736911596271,1.07178774,698.93,697.77,0.855]
[1736911598679,0.28613531,698.97,697.77,0.855]
[1736911598680,1.07178774,698.92,697.77,0.855]
[1736911599679,1.35792305,698.97,697.77,0.855]
[1736911602783,1.07178774,698.94,697.77,0.855]
[1736911604484,1.07178774,698.91,697.77,0.855]
[1736911607591,1.07178774,698.9,697.77,0.855]
[1736911608389,1.07178774,698.93,697.77,0.855]
[1736911609393,1.07178774,698.94,697.78,1.06832712]
[1736911610290,1.07178774,698.91,697.75,1.06832712]
[1736911610891,1.07178774,698.91,697.75,2.04132712]
[1736911611890,1.07178774,698.92,697.75,2.04132712]
[1736911612892,1.07178774,698.9,697.77,1.06832712]
[1736911613898,1.07178774,698.91,697.77,1.06832712]
[1736911614798,1.07178774,698.9,697.76,1.06832712]
[1736911614995,0.28613531,698.97,697.75,0.973]
[1736911615199,0.26311755,698.96,697.75,0.973]
[1736911615400,0.28613531,698.97,697.75,0.973]
[1736911615597,0.26311823,698.96,697.75,0.973]
[1736911616601,1.07198946,698.89,697.76,1.06638356]
[1736911617502,1.07198946,698.9,697.76,1.06638356]
[1736911618703,1.07198946,698.88,697.8,1.06638356]
[1736911619905,1.07198946,698.88,697.75,0.973]
[1736911619906,1.07198946,698.88,697.81,1.06638356]
[1736911620607,1.07198946,698.86,697.8,1.06638356]
[1736911621508,1.07198946,698.83,697.76,1.06638356]
[1736911622713,1.07198946,698.81,697.75,0.973]
[1736911623510,1.07198946,698.83,697.75,2.03938356]
[1736911624507,1.07198946,698.84,697.75,0.973]
[1736911625610,1.07198946,698.83,697.75,0.973]
[1736911626804,1.07198946,698.82,697.75,0.973]
[1736911627914,1.07198946,698.83,697.75,0.973]
[1736911630115,1.07198946,698.84,697.75,0.973]
[1736911631315,1.07198946,698.85,697.75,0.973]
[1736911633716,1.07198946,698.83,697.75,0.973]
[1736911634517,1.07198946,698.82,697.75,0.973]
[1736911637819,1.07198946,698.93,697.75,0.973]
[1736911638917,1.35812477,698.97,697.75,0.973]
[1736911639919,1.07198946,698.96,697.75,0.973]
[1736911642019,0.28613531,698.97,697.75,0.973]
[1736911645322,1.07198946,698.96,697.75,0.973]
[1736911646327,0.28613531,698.97,697.75,0.973]
[1736911647325,1.07198946,698.91,697.75,0.973]